bitfinex-derivatives/quotes_BTCF0:USTF0_20210409
["timestamp","ask_amount","ask_price","bid_price","bid_amount"]
[1617938614369,0.01034168,58020.0,58017.0,3.5224]
[1617938614579,0.01034168,58020.0,58017.0,4.5224]
[1617938614860,0.01034144,58021.0,58019.0,2.61719552]
[1617938615261,0.01034144,58021.0,58020.0,1.67871367]
[1617938615461,0.01034144,58021.0,58020.0,2.67871367]
[1617938615867,0.0103411,58024.0,58020.0,2.61720576]
[1617938616161,0.0103411,58024.0,58021.0,1.0]
[1617938616363,0.01034127,58023.0,58021.0,1.0]
[1617938616562,0.01034127,58023.0,58020.0,1.67871336]
[1617938616965,0.01034127,58023.0,58022.0,0.16876304]
[1617938617368,0.01034102,58024.0,58022.0,1.78486988]
[1617938617767,0.01034102,58024.0,58023.0,1.67756021]
[1617938617967,0.01034102,58024.0,58023.0,1.81317021]
[1617938618168,0.30726444,58024.0,58023.0,4.67457021]
[1617938618468,0.30726444,58024.0,58023.0,5.67457021]
[1617938618670,0.01034111,58024.0,58023.0,5.76683017]
[1617938619169,0.01034111,58024.0,58023.0,5.96683017]
[1617938619469,0.01034111,58024.0,58023.0,6.11034514]
[1617938619869,0.01034019,58025.0,58023.0,6.11034514]
[1617938620069,0.01034019,58025.0,58024.0,1.0]
[1617938620369,0.02564007,58030.0,58024.0,1.2]
[1617938620568,0.02564007,58030.0,58024.0,1.47]
[1617938620772,0.0153,58030.0,58029.0,2.5788]
[1617938620969,0.0153,58030.0,58029.0,3.88605655]
[1617938621171,0.0153,58030.0,58029.0,5.65300166]
[1617938622173,0.0153,58030.0,58029.0,3.07420166]
[1617938622573,0.0153,58030.0,58029.0,2.87420166]
[1617938622974,0.0153,58030.0,58029.0,1.78195566]
[1617938623177,0.0153,58030.0,58029.0,2.78195566]
[1617938623575,0.0153,58030.0,58029.0,2.98195566]
[1617938627481,0.0153,58030.0,58029.0,3.03395566]
[1617938628380,0.0153,58030.0,58029.0,2.98195566]
[1617938632087,0.0153,58030.0,58029.0,1.36875388]
[1617938632286,0.0153,58030.0,58029.0,3.06864807]
[1617938632887,0.0153,58030.0,58029.0,2.97640556]
[1617938633688,0.0153,58030.0,58029.0,3.24640556]
[1617938633689,0.01427514,58030.0,58029.0,3.24640556]
[1617938634191,0.32627514,58038.0,58029.0,3.24640556]
[1617938634430,0.23534923,58038.0,58037.0,1.0]
[1617938634688,0.23534923,58038.0,58037.0,1.32692]
[1617938634889,0.23534923,58038.0,58037.0,2.75873409]
[1617938635092,0.23534923,58038.0,58037.0,2.86599064]
[1617938635289,0.23534923,58038.0,58037.0,1.86599064]
[1617938635491,0.11934923,58038.0,58037.0,2.45766134]
[1617938635691,0.11284923,58038.0,58037.0,3.50956134]
[1617938635893,0.11284923,58038.0,58037.0,3.9760169]
[1617938636190,0.07822481,58068.0,58037.0,3.9760169]
[1617938636501,0.07822481,58068.0,58043.0,5.0959]
[1617938636693,0.07822481,58068.0,58040.0,5.4989]
[1617938636895,0.07822481,58068.0,58067.0,0.10725655]
[1617938637089,0.07822481,58068.0,58067.0,0.22504655]
[1617938639796,0.07822481,58068.0,58067.0,0.10725655]
[1617938640593,3.13032481,58068.0,58067.0,0.10725655]
[1617938640796,0.07822481,58068.0,58067.0,0.10725655]
[1617938642494,0.07822481,58068.0,58067.0,3.61885655]
[1617938646698,0.07822481,58068.0,58067.0,0.10725655]
[1617938654806,0.07822481,58068.0,58064.0,2.5137]
[1617938654807,0.19851481,58068.0,58054.0,0.2984179]
[1617938655008,0.10725655,58055.0,58053.0,0.29852591]
[1617938655206,0.22370655,58055.0,58053.0,0.29852591]
[1617938655408,0.22370655,58055.0,58050.0,0.29872757]
[1617938655908,0.22370655,58055.0,58048.0,0.29884491]
[1617938656409,0.22370655,58055.0,58047.0,0.40614271]
[1617938656909,3.78860655,58055.0,58047.0,0.40614271]
[1617938657109,0.10725655,58048.0,58047.0,0.40614271]
[1617938658811,0.01023986,58069.0,58047.0,2.95894271]
[1617938659013,0.01023926,58070.0,58063.0,0.10725655]
[1617938659209,0.01023926,58070.0,58063.0,0.23778655]
[1617938659511,0.01023904,58075.0,58069.0,2.5525]
[1617938660310,0.30423126,58076.0,58069.0,2.5525]
[1617938660510,0.01023897,58077.0,58069.0,2.5525]
[1617938661010,0.10725655,58070.0,58069.0,2.5525]
[1617938663211,0.10725655,58070.0,58069.0,2.65975655]
[1617938673022,0.10725655,58070.0,58069.0,3.31820986]
[1617938675342,0.10725655,58070.0,58069.0,2.65975655]
[1617938675927,0.10725655,58070.0,58069.0,2.95919135]
[1617938683640,0.10725655,58070.0,58069.0,3.31931698]
[1617938685354,0.11756372,58070.0,58069.0,3.31931698]
[1617938687345,0.10725655,58070.0,58069.0,3.31931698]
[1617938687945,0.41359622,58070.0,58069.0,3.31931698]
[1617938690747,0.10725655,58070.0,58069.0,3.31931698]
[1617938692556,0.10725655,58070.0,58069.0,1.20697863]
[1617938692749,2.90275655,58070.0,58069.0,1.20697863]
[1617938693450,2.7955,58070.0,58069.0,1.26844409]
[1617938694851,3.10244012,58070.0,58069.0,1.26844409]
[1617938695352,3.22888012,58070.0,58069.0,1.26844409]
[1617938696754,3.59720256,58070.0,58069.0,1.26844409]
[1617938698155,3.22888012,58070.0,58069.0,1.26844409]
[1617938698356,3.10244012,58070.0,58069.0,1.26844409]
[1617938702862,0.30694012,58070.0,58069.0,1.26844409]
[1617938703063,0.30694012,58070.0,58069.0,4.36794409]
[1617938703965,0.30694012,58070.0,58069.0,4.46014305]
[1617938707772,0.67518874,58070.0,58069.0,4.46014305]
[1617938708471,0.30694012,58070.0,58069.0,4.46014305]
[1617938709473,0.41419667,58070.0,58069.0,4.46014305]
[1617938714681,0.41419667,58070.0,58069.0,4.96185647]
[1617938715080,0.41419667,58070.0,58069.0,1.86235647]
[1617938715282,3.83746116,58070.0,58069.0,1.86235647]
[1617938715683,4.08331129,58070.0,58069.0,1.77015751]
[1617938716684,4.08331129,58070.0,58069.0,1.26844409]
[1617938719289,4.08331129,58070.0,58069.0,1.16118754]
[1617938719689,5.08331129,58070.0,58069.0,1.16118754]
[1617938720095,5.53381008,58070.0,58069.0,1.09972208]
[1617938720489,5.53381008,58070.0,58069.0,1.16119287]
[1617938720889,5.53381008,58070.0,58069.0,1.09972208]
[1617938722292,5.53381008,58070.0,58069.0,0.65956043]
[1617938722491,5.58551008,58070.0,58069.0,0.65956043]
[1617938723392,5.53381008,58070.0,58069.0,0.65956043]
[1617938726099,5.58601008,58070.0,58069.0,0.65956043]
[1617938726313,5.53381008,58070.0,58069.0,0.65956043]
[1617938727527,5.53381008,58070.0,58069.0,0.2994348]
[1617938728603,5.53381008,58070.0,58069.0,0.72353415]
[1617938728803,5.53381008,58070.0,58069.0,0.2994348]
[1617938731405,2.47911008,58070.0,58069.0,0.2994348]
[1617938732408,1.47911008,58070.0,58069.0,0.2994348]
[1617938733009,1.47911008,58070.0,58069.0,0.66138575]
[1617938733511,1.02861129,58070.0,58069.0,0.72285728]
[1617938733810,1.02861129,58070.0,58069.0,1.10347967]
[1617938734008,1.02861129,58070.0,58069.0,3.81437967]
[1617938734209,1.02861129,58070.0,58069.0,3.87585064]
[1617938734610,1.02861129,58070.0,58069.0,3.96805589]
[1617938736012,1.02861129,58070.0,58069.0,1.25715589]
[1617938736013,0.41419667,58070.0,58069.0,1.25715589]
[1617938736414,0.41419667,58070.0,58069.0,1.10347967]
[1617938738022,0.78234646,58070.0,58069.0,1.10347967]
[1617938738515,4.40374646,58070.0,58069.0,1.10347967]
[1617938739014,4.64961963,58070.0,58069.0,1.10347967]
[1617938740214,3.64961963,58070.0,58069.0,1.10347967]
[1617938742015,3.28146984,58070.0,58069.0,1.10347967]
[1617938744319,3.64972012,58070.0,58069.0,1.10347967]
[1617938746423,3.28146984,58070.0,58069.0,1.10347967]
[1617938746823,3.03559667,58070.0,58069.0,1.10347967]
[1617938758438,3.40383826,58070.0,58069.0,1.10347967]
[1617938764244,1.78243826,58070.0,58069.0,1.10347967]
[1617938764944,2.2325706,58070.0,58069.0,0.66138575]
[1617938765343,2.2325706,58070.0,58069.0,0.7228588]
[1617938765844,2.2325706,58070.0,58069.0,0.66138575]
[1617938766144,2.2325706,58070.0,58069.0,0.72285861]
[1617938766545,2.2325706,58070.0,58069.0,0.66138575]
[1617938767047,1.2325706,58070.0,58069.0,0.66138575]
[1617938767245,2.2325706,58070.0,58069.0,0.66138575]
[1617938768046,2.47846451,58070.0,58069.0,0.66138575]
[1617938776454,2.47846451,58070.0,58069.0,0.76300575]
[1617938776654,1.47846451,58070.0,58069.0,0.76300575]
[1617938776954,1.47846451,58070.0,58069.0,0.82447974]
[1617938777854,1.02833217,58070.0,58069.0,0.82447974]
[1617938778259,1.02833217,58070.0,58069.0,1.26819007]
[1617938778857,1.02833217,58070.0,58069.0,3.99919007]
[1617938779162,0.78243826,58070.0,58069.0,3.99919007]
[1617938779358,0.41419667,58070.0,58069.0,3.99919007]
[1617938779858,0.11758446,58070.0,58069.0,4.59496339]
[1617938780058,0.10725655,58070.0,58069.0,4.70221994]
[1617938780259,0.10725655,58070.0,58069.0,1.97121994]
[1617938781159,0.10725655,58070.0,58069.0,1.87902015]
[1617938784259,0.10725655,58070.0,58069.0,4.50202015]
[1617938785062,0.10725655,58070.0,58069.0,4.59422954]
[1617938785466,0.10725655,58070.0,58069.0,4.64512954]
[1617938785661,0.10725655,58070.0,58069.0,4.59422954]
[1617938788373,0.10725655,58070.0,58069.0,4.09065601]
[1617938790876,0.22642655,58070.0,58069.0,1.46765601]
[1617938791076,0.23674865,58070.0,58069.0,1.36603601]
[1617938791478,0.53313497,58070.0,58069.0,1.27382662]
[1617938792379,0.90117313,58070.0,58069.0,0.72285974]
[1617938792878,0.90117313,58070.0,58069.0,0.66138575]
[1617938793780,1.14709379,58070.0,58069.0,0.66138575]
[1617938794581,2.14709379,58070.0,58069.0,0.66138575]
[1617938795885,4.76079379,58070.0,58069.0,0.66138575]
[1617938797786,3.76079379,58070.0,58069.0,0.66138575]
[1617938798687,1.14709379,58070.0,58069.0,0.66138575]
[1617938798887,1.14709379,58070.0,58069.0,0.72286517]
[1617938799088,2.14709379,58070.0,58069.0,0.72286517]
[1617938799403,2.14709379,58070.0,58069.0,0.66138575]
[1617938800391,2.59685883,58070.0,58069.0,0.2994348]
[1617938801090,1.59685883,58070.0,58069.0,0.2994348]
[1617938801291,2.59685883,58070.0,58069.0,0.2994348]
[1617938803591,2.95632192,58070.0,58069.0,0.2994348]
[1617938804193,1.95632192,58070.0,58069.0,0.2994348]
[1617938804393,2.95632192,58070.0,58069.0,0.2994348]
[1617938804995,2.59685883,58070.0,58069.0,0.2994348]
[1617938805394,2.95626564,58070.0,58069.0,0.2994348]
[1617938805997,2.59685883,58070.0,58069.0,0.2994348]
[1617938810302,2.59685883,58070.0,58068.0,0.30266267]
[1617938811202,1.36984267,58069.0,58068.0,0.30266267]
[1617938811504,2.36984267,58069.0,58068.0,0.30266267]
[1617938812604,2.36984267,58069.0,58066.0,0.30278646]
[1617938813305,0.24593355,58068.0,58067.0,0.30273547]
[1617938813806,2.36988003,58068.0,58067.0,0.30273547]
[1617938814106,2.12394648,58068.0,58067.0,0.30273547]
[1617938814706,2.36987768,58068.0,58067.0,0.30273547]
[1617938815709,2.56987768,58068.0,58066.0,0.30271957]
[1617938816110,1.36971358,58067.0,58066.0,0.30271957]
[1617938816810,3.86971358,58067.0,58066.0,0.30271957]
[1617938817009,3.86971358,58067.0,58029.0,1.37409663]
[1617938817010,3.86971358,58067.0,58064.0,0.30282969]
[1617938817710,2.12382311,58065.0,58061.0,0.30287311]
[1617938817908,0.0518,58064.0,58061.0,0.30287311]
[1617938818210,0.10725655,58060.0,58059.0,0.36344773]
[1617938818609,0.10725655,58060.0,58058.0,0.36347133]
[1617938819009,0.92026079,58059.0,58058.0,0.36347133]
[1617938819414,1.92026079,58059.0,58058.0,0.36347133]
[1617938819613,1.92026079,58059.0,58058.0,0.66646278]
[1617938821265,1.92026079,58059.0,58058.0,0.30299145]
[1617938821464,3.42026079,58059.0,58058.0,0.30299145]
[1617938821639,3.42026079,58059.0,58058.0,0.36447934]
[1617938822012,6.59686079,58059.0,58058.0,0.30299145]
[1617938822539,5.09686079,58059.0,58058.0,0.30299145]
[1617938822724,5.09686079,58059.0,58057.0,0.30306481]
[1617938822725,5.54629491,58059.0,58057.0,0.30306481]
[1617938823126,5.34629491,58059.0,58057.0,0.30306481]
[1617938823331,1.36960934,58058.0,58056.0,0.30309266]
[1617938823523,1.51011934,58058.0,58056.0,0.30309266]
[1617938823713,2.51011934,58058.0,58056.0,0.30309266]
[1617938824021,1.5,58057.0,58056.0,0.30309266]
[1617938824214,2.42018859,58057.0,58056.0,0.30309266]
[1617938824517,2.42018859,58057.0,58055.0,0.30290865]
[1617938824714,0.92018859,58057.0,58055.0,0.30290865]
[1617938824915,0.9201978,58056.0,58055.0,0.30290865]
[1617938825114,1.9201978,58056.0,58055.0,0.30290865]
[1617938825414,1.67422246,58056.0,58055.0,0.30290865]
[1617938826016,1.92019866,58056.0,58055.0,0.30290865]
[1617938826726,1.92019866,58056.0,58051.0,0.30244151]
[1617938827220,0.30604137,58052.0,58051.0,0.30244151]
[1617938828219,1.30604137,58052.0,58051.0,0.30244151]
[1617938828420,1.10725655,58052.0,58051.0,0.30244151]
[1617938830724,1.10725655,58052.0,58044.0,0.0614954]
[1617938830725,1.10725655,58052.0,58050.0,0.30264836]
[1617938831225,0.30585026,58051.0,58049.0,0.30248415]
[1617938832028,0.01029349,58051.0,58050.0,0.3024568]
[1617938832428,1.01029349,58051.0,58049.0,0.30234684]
[1617938832828,1.0,58050.0,58049.0,0.30234684]
[1617938833028,1.0,58050.0,58046.0,0.3628162]
[1617938833229,3.0732,58049.0,58046.0,0.3628162]
[1617938833436,1.0,58047.0,58046.0,0.3628162]
[1617938833829,1.0,58047.0,58045.0,0.36285771]
[1617938834459,0.10725655,58046.0,58045.0,0.36285771]
[1617938834848,1.10725655,58046.0,58045.0,0.66514554]
[1617938835050,3.93481655,58046.0,58045.0,0.66514554]
[1617938835833,3.93481655,58046.0,58045.0,0.72663908]
[1617938836234,3.93481655,58046.0,58045.0,0.66514554]
[1617938837337,2.93481655,58046.0,58045.0,0.66514554]
[1617938838538,3.93481655,58046.0,58045.0,0.66514554]
[1617938840637,1.23951655,58046.0,58045.0,0.66514554]
[1617938841038,1.23951655,58046.0,58045.0,3.30624554]
[1617938841638,1.23951655,58046.0,58045.0,3.36773898]
[1617938841838,0.23951655,58046.0,58045.0,3.36773898]
[1617938842041,1.10725655,58046.0,58045.0,3.36773898]
[1617938842640,0.10725655,58046.0,58045.0,3.36773898]
[1617938846345,1.10725655,58046.0,58045.0,3.36773898]
[1617938846745,0.10725655,58046.0,58045.0,3.36773898]
[1617938847045,0.10725655,58046.0,58045.0,0.72663898]
[1617938847270,0.10725655,58046.0,58045.0,3.27193898]
[1617938847647,0.10725655,58046.0,58045.0,3.71610962]
[1617938848346,0.10725655,58046.0,58045.0,3.41382179]
[1617938848547,0.10725655,58052.0,58045.0,3.71647428]
[1617938849047,0.10725655,58052.0,58051.0,0.66576583]
[1617938849246,0.10725655,58052.0,58051.0,0.81562583]
[1617938849449,0.10725655,58052.0,58051.0,0.95680168]
[1617938849847,0.10725655,58052.0,58051.0,1.32087749]
[1617938850449,0.10725655,58052.0,58051.0,1.42813404]
[1617938852051,0.10725655,58052.0,58051.0,5.12603404]
[1617938852652,0.10725655,58052.0,58051.0,5.21826549]
[1617938858057,1.10725655,58052.0,58051.0,1.41310894]
[1617938858359,1.41375475,58052.0,58051.0,1.26324894]
[1617938858860,1.41375475,58052.0,58051.0,0.66573115]
[1617938859182,1.41375475,58052.0,58051.0,0.72722658]
[1617938859183,1.78155838,58052.0,58051.0,0.72722658]
[1617938859457,1.78155838,58052.0,58051.0,0.66573115]
[1617938862458,1.78155838,58052.0,58051.0,0.30258615]
[1617938862857,1.78155838,58052.0,58051.0,0.36408425]
[1617938863258,1.78155838,58052.0,58051.0,0.30258615]
[1617938863758,1.78155838,58052.0,58051.0,0.36408563]
[1617938864259,1.78155838,58052.0,58051.0,0.66678146]
[1617938865462,0.89111838,58052.0,58051.0,0.66678146]
[1617938865662,1.89111838,58052.0,58051.0,0.66678146]
[1617938866762,2.34098817,58052.0,58051.0,0.66678146]
[1617938866964,1.34098817,58052.0,58051.0,0.66678146]
[1617938867163,1.39228817,58052.0,58051.0,0.66678146]
[1617938867364,2.39228817,58052.0,58051.0,0.66678146]
[1617938867566,1.94241838,58052.0,58051.0,0.66678146]
[1617938867766,1.89111838,58052.0,58051.0,0.66678146]
[1617938868066,2.13710792,58052.0,58051.0,0.66678146]
[1617938871171,2.58696965,58052.0,58051.0,0.66678146]
[1617938871669,2.13710792,58052.0,58051.0,0.66678146]
[1617938872169,2.58697395,58052.0,58051.0,0.66678146]
[1617938872369,1.58697395,58052.0,58051.0,0.66678146]
[1617938872569,2.58697395,58052.0,58051.0,0.66678146]
[1617938872770,2.58697395,58052.0,58051.0,4.20688146]
[1617938873369,2.13710792,58052.0,58051.0,4.2683772]
[1617938873569,4.78810792,58052.0,58051.0,4.2683772]
[1617938875272,2.13710792,58052.0,58051.0,0.7282772]
[1617938875674,2.13710792,58052.0,58051.0,0.66678146]
[1617938876176,2.13710792,58052.0,58051.0,1.11259219]
[1617938880896,5.39350792,58052.0,58051.0,1.11259219]
[1617938881116,4.39350792,58052.0,58051.0,1.11259219]
[1617938881341,1.13710792,58052.0,58051.0,1.11259219]
[1617938881519,1.02754792,58052.0,58051.0,4.55729219]
[1617938882323,1.02754792,58052.0,58051.0,5.21727798]
[1617938882324,0.41375475,58052.0,58051.0,5.21727798]
[1617938882688,0.1175919,58052.0,58051.0,5.32453453]
[1617938883109,0.10725655,58052.0,58051.0,5.32453453]
[1617938889894,0.15925655,58052.0,58051.0,5.32453453]
[1617938890094,0.10725655,58052.0,58051.0,5.32453453]
[1617938895398,0.10725655,58052.0,58051.0,1.87983453]
[1617938895997,0.10725655,58052.0,58051.0,1.7875983]
[1617938898598,0.10725655,58052.0,58051.0,1.8897583]
[1617938900101,0.10725655,58052.0,58051.0,1.7875983]
[1617938908611,0.10661327,58052.0,58051.0,1.7875983]
[1617938934346,0.15751327,58052.0,58051.0,1.7875983]
[1617938934546,0.10661327,58052.0,58051.0,1.7875983]
[1617938936647,0.10661327,58052.0,58051.0,1.7873454]
[1617938937050,0.11695596,58052.0,58051.0,1.7873454]
[1617938937349,0.11695596,58052.0,58051.0,5.2451454]
[1617938938050,0.11695596,58052.0,58051.0,5.33738107]
[1617938939250,0.10661327,58052.0,58051.0,5.33738107]
[1617938941955,0.10661327,58052.0,58051.0,1.77232452]
[1617938942153,2.61841327,58052.0,58051.0,1.77232452]
[1617938942450,3.61841327,58052.0,58051.0,1.77232452]
[1617938942651,3.61841327,58052.0,58051.0,1.61859803]
[1617938943058,3.9871916,58052.0,58051.0,1.11233929]
[1617938944655,1.4753916,58052.0,58051.0,1.11233929]
[1617938945356,1.4753916,58052.0,58051.0,4.27693929]
[1617938945757,1.4753916,58052.0,58051.0,4.43067886]
[1617938948463,1.4753916,58052.0,58051.0,1.26607886]
[1617938949064,1.4753916,58052.0,58051.0,1.11233929]
[1617938949464,1.4753916,58052.0,58051.0,1.1738359]
[1617938949965,1.4753916,58052.0,58051.0,0.66652856]
[1617938960500,2.9753916,58052.0,58051.0,0.66652856]
[1617938960879,1.4753916,58052.0,58051.0,0.66652856]
[1617938961087,2.9753916,58052.0,58051.0,0.66652856]
[1617938961399,1.4753916,58052.0,58051.0,0.66652856]
[1617938963782,1.4753916,58052.0,58051.0,3.56343325]
[1617938964181,0.4753916,58052.0,58051.0,3.98892657]
[1617938964986,0.10661327,58052.0,58051.0,3.98892657]
[1617938965587,0.10661327,58052.0,58051.0,4.43335057]
[1617938965988,0.1169321,58052.0,58051.0,4.43335057]
[1617938966389,0.10661327,58052.0,58051.0,4.43335057]
[1617938966790,0.41321166,58052.0,58051.0,4.43335057]
[1617938967291,0.11693181,58052.0,58051.0,4.43335057]
[1617938969389,0.10661327,58052.0,58051.0,4.43335057]
[1617938972193,0.4133316,58052.0,58051.0,4.43335057]
[1617938975000,1.4133316,58052.0,58051.0,4.43335057]
[1617938975400,1.78138451,58052.0,58051.0,3.98892657]
[1617938980710,1.78138451,58052.0,58051.0,4.43402124]
[1617938981209,1.4133316,58052.0,58051.0,4.43402124]
[1617938982912,1.78164734,58052.0,58051.0,4.43402124]
[1617938984414,0.4133316,58052.0,58051.0,4.43402124]
[1617938986218,0.78163842,58052.0,58051.0,4.43402124]
[1617938986817,0.78163842,58052.0,58051.0,1.17292124]
[1617938987018,4.26723842,58052.0,58051.0,1.17292124]
[1617938987218,4.51321596,58052.0,58051.0,1.11141981]
[1617938988320,5.51321596,58052.0,58051.0,1.11141981]
[1617938992727,1.02761596,58052.0,58051.0,1.11141981]
[1617938993134,1.02761596,58052.0,58051.0,4.52891981]
[1617938993530,1.02761596,58052.0,58051.0,4.68265718]
[1617939002844,1.02761596,58052.0,58051.0,1.26515718]
[1617939003747,1.02761596,58052.0,58051.0,1.11141981]
[1617939005350,1.02761596,58052.0,58051.0,1.61782178]
[1617939006852,1.02761596,58052.0,58051.0,1.11141981]
[1617939007252,1.02761596,58052.0,58051.0,1.17291168]
[1617939007654,1.02761596,58052.0,58051.0,1.11141981]
[1617939009455,1.02761596,58052.0,58051.0,1.17291351]
[1617939009955,1.02761596,58052.0,58051.0,1.11141981]
[1617939026074,1.10661327,58052.0,58049.0,3.46905655]
[1617939026274,1.10661327,58052.0,58049.0,3.3618]
[1617939026674,1.10661327,58052.0,58051.0,0.86806988]
[1617939027073,1.4753728,58052.0,58051.0,0.86806988]
[1617939031181,1.92621015,58052.0,58051.0,0.86806988]
[1617939031583,1.4753728,58052.0,58051.0,0.86806988]
[1617939031983,1.92621057,58052.0,58051.0,0.86806988]
[1617939036788,5.05001057,58052.0,58051.0,0.86806988]
[1617939039090,4.05001057,58052.0,58051.0,0.86806988]
[1617939039292,5.05001057,58052.0,58051.0,0.86806988]
[1617939041696,4.68125104,58052.0,58051.0,0.86806988]
[1617939042096,5.05017735,58052.0,58051.0,0.86806988]
[1617939045198,4.05017735,58052.0,58051.0,0.86806988]
[1617939045398,5.05017735,58052.0,58051.0,0.86806988]
[1617939051810,5.05017735,58052.0,58051.0,0.42245244]
[1617939055414,1.92637735,58052.0,58051.0,0.42245244]
[1617939056617,2.63842059,58052.0,58051.0,0.05785635]
[1617939056814,4.13842059,58052.0,58051.0,0.05785635]
[1617939057316,9.44569978,58052.0,58051.0,0.03555635]
[1617939057515,9.44569978,58052.0,58049.0,0.36512482]
[1617939057516,9.44569978,58052.0,58049.0,0.29168117]
[1617939057792,10.33156039,58052.0,58041.0,0.4465198]
[1617939057980,2.83205655,58042.0,58041.0,0.4465198]
[1617939058154,4.66694655,58042.0,58041.0,0.4465198]
[1617939058357,4.66694655,58042.0,58027.0,0.56829793]
[1617939058358,4.66694655,58042.0,58032.0,0.44729997]
[1617939058359,6.6298312,58042.0,58032.0,0.44729997]
[1617939058719,12.24499755,58042.0,58030.0,0.44744882]
[1617939059121,12.24499755,58042.0,58027.0,0.4476578]
[1617939059122,0.45073072,58031.0,58027.0,0.4476578]
[1617939059419,1.45073072,58031.0,58027.0,0.4476578]
[1617939059619,1.45073341,58028.0,58027.0,0.4476578]
[1617939059918,1.71161996,58028.0,58027.0,0.4476578]
[1617939060119,1.95769093,58028.0,58027.0,0.4476578]
[1617939060319,2.00859093,58028.0,58027.0,0.4476578]
[1617939060521,5.11989093,58028.0,58027.0,0.4476578]
[1617939062920,4.43338257,58028.0,58020.0,0.44550852]
[1617939063820,3.46455655,58021.0,58019.0,0.44564259]
[1617939064019,1.5,58020.0,58019.0,0.44564259]
[1617939064224,4.46455655,58021.0,58015.0,0.44608124]
[1617939064422,1.0,58020.0,58015.0,0.18248124]
[1617939064640,2.899,58016.0,58006.0,0.09228732]
[1617939064843,4.02365,58016.0,58006.0,0.09228732]
[1617939065021,4.02365,58016.0,57995.0,1.12868034]
[1617939065022,0.01029855,58015.0,58001.0,0.50764613]
[1617939065321,1.0,58007.0,58001.0,0.50764613]
[1617939065521,1.0,58007.0,58002.0,0.507641]
[1617939065821,0.10725655,58006.0,58005.0,2.6804]
[1617939066021,0.10725655,58006.0,58002.0,0.507641]
[1617939066322,0.10725655,58006.0,58005.0,3.86252227]
[1617939066620,1.0,58016.0,58005.0,3.96648227]
[1617939066848,5.0,58046.0,58005.0,3.96648227]
[1617939066850,0.01029777,58022.0,58005.0,0.76490259]
[1617939067323,0.01029762,58023.0,58021.0,2.4811]
[1617939067523,0.01029762,58023.0,58021.0,2.61535]
[1617939067725,0.01029652,58026.0,58021.0,2.61535]
[1617939067923,0.01029652,58026.0,58024.0,0.10725655]
[1617939068398,0.4887,58057.0,58025.0,3.5151]
[1617939068399,0.01029621,58028.0,58025.0,3.5151]
[1617939068776,0.50981554,58042.0,58025.0,3.5151]
[1617939068777,1.0,58045.0,58026.0,0.06151515]
[1617939068778,0.01029573,58034.0,58026.0,0.06151515]
[1617939069227,0.01029535,58036.0,58026.0,0.06151515]
[1617939069626,0.01029465,58039.0,58026.0,0.06151515]
[1617939069826,0.01029465,58039.0,58038.0,0.10725655]
[1617939070025,0.01029465,58039.0,58038.0,0.25018655]
[1617939070526,1.0,58049.0,58038.0,0.25018655]
[1617939070527,0.01029459,58041.0,58040.0,3.0911]
[1617939070929,0.01029443,58044.0,58040.0,3.0911]
[1617939071328,0.01029443,58044.0,58041.0,0.061507]
[1617939072031,0.10725655,58042.0,58041.0,0.061507]
[1617939074135,0.10725655,58042.0,58041.0,3.521507]
[1617939074336,0.10725655,58042.0,58041.0,3.46]
[1617939074937,0.10725655,58042.0,58041.0,0.06150488]
[1617939075737,0.10725655,58042.0,58039.0,0.06150531]
[1617939077753,1.0,58041.0,58039.0,0.06150531]
[1617939079144,1.0,58041.0,58038.0,0.10725655]
[1617939079545,0.10725655,58042.0,58038.0,0.10725655]
[1617939079746,0.9384945,58039.0,58038.0,0.10725655]
[1617939079944,1.0,58039.0,58038.0,0.10725655]
[1617939080947,0.10725655,58042.0,58038.0,0.10725655]
[1617939081147,3.0319,58039.0,58022.0,0.4528]
[1617939081347,4.0319,58039.0,58022.0,0.4528]
[1617939081604,1.0,58024.0,58022.0,0.9579348]
[1617939081776,1.09573,58024.0,58022.0,0.9579348]
[1617939081948,0.10725655,58023.0,58022.0,0.9579348]
[1617939082275,1.10725655,58023.0,58022.0,0.4528]
[1617939082449,3.64425655,58023.0,58022.0,0.4528]
[1617939082649,3.64425655,58023.0,58022.0,0.81676903]
[1617939084652,3.64425655,58023.0,58022.0,1.26182426]
[1617939086554,2.64425655,58023.0,58022.0,1.26182426]
[1617939087752,3.64425655,58023.0,58022.0,1.26182426]
[1617939088053,3.64425655,58023.0,58022.0,1.56485141]
[1617939089155,2.64425655,58023.0,58022.0,1.56485141]
[1617939089355,3.64425655,58023.0,58022.0,1.56485141]
[1617939089957,3.64425655,58023.0,58022.0,1.11979618]
[1617939090358,3.64425655,58023.0,58022.0,0.75582715]
[1617939090757,3.65455493,58023.0,58022.0,0.75582715]
[1617939091057,3.65455493,58023.0,58022.0,0.30302715]
[1617939091258,3.95025794,58023.0,58021.0,0.30353702]
[1617939091659,0.3059996,58022.0,58020.0,0.30357027]
[1617939091859,0.5059996,58022.0,58020.0,0.30357027]
[1617939092261,0.30602121,58021.0,58020.0,0.30357027]
[1617939092461,1.30602121,58021.0,58020.0,0.30357027]
[1617939092665,1.6732303,58021.0,58016.0,0.30382618]
[1617939093263,0.30602435,58018.0,58016.0,0.30382618]
[1617939093762,1.0,58017.0,58016.0,0.30382618]
[1617939094164,1.41329248,58017.0,58015.0,0.30391471]
[1617939094564,1.0,58016.0,58014.0,0.30396397]
[1617939095167,1.0,58015.0,58014.0,0.30396397]
[1617939095567,1.01030007,58015.0,58014.0,0.30396397]
[1617939096367,3.1748,58012.0,58011.0,0.30339545]
[1617939096665,3.30803,58012.0,58011.0,0.30339545]
[1617939097868,4.30803,58012.0,58011.0,0.30339545]
[1617939098670,4.30803,58012.0,58010.0,0.303424]
[1617939099170,4.30803,58012.0,58009.0,0.30348328]
[1617939099570,1.0,58011.0,58010.0,0.30345227]
[1617939099970,3.30803,58012.0,58010.0,0.30345227]
[1617939100272,0.10725655,58011.0,58010.0,0.30345227]
[1617939100570,1.10725655,58011.0,58008.0,0.36426735]
[1617939100971,1.10725655,58011.0,57997.0,0.50575378]
[1617939100972,3.0121,58009.0,58007.0,0.3643134]
[1617939101170,4.0121,58009.0,58007.0,0.3643134]
[1617939101469,1.0,58009.0,58008.0,0.30359647]
[1617939101670,4.1772,58009.0,58008.0,0.30359647]
[1617939106876,4.1772,58009.0,58007.0,0.30308268]
[1617939107276,4.1772,58009.0,58008.0,0.30305514]
[1617939107476,3.1772,58009.0,58008.0,0.30305514]
[1617939107876,3.1772,58009.0,58007.0,0.30310462]
[1617939108078,4.1772,58009.0,58007.0,0.30310462]
[1617939108376,1.0,58008.0,58007.0,0.30310462]
[1617939108778,1.0,58008.0,58005.0,0.36345306]
[1617939109177,1.0,58008.0,58007.0,0.30286789]
[1617939111578,3.1772,58009.0,58007.0,0.30286789]
[1617939111779,0.10725655,58011.0,58007.0,0.30286789]
[1617939111780,0.10725655,58011.0,58008.0,3.636]
[1617939112279,0.10725655,58011.0,58010.0,0.77369714]
[1617939112681,0.10725655,58011.0,58010.0,0.83522571]